bitfinex/quotes_SOLUSD_20250305
["timestamp","ask_amount","ask_price","bid_price","bid_amount"]
[1741191893738,18.64964886,141.71,141.66,312.033]
[1741191894167,0.28432314,141.72,141.66,312.033]
[1741191894459,6.0517,141.74,141.66,312.033]
[1741191894666,1.76319769,141.77,141.66,7.0921]
[1741191894868,18.933972,141.76,141.66,7.0921]
[1741191895052,18.64964886,141.76,141.66,7.0921]
[1741191895247,18.64964886,141.76,141.66,36.94495908]
[1741191896266,6.0109,141.78,141.69,29.85285908]
[1741191896481,18.64964886,141.77,141.69,29.85285908]
[1741191896683,18.64964886,141.77,141.68,29.85285908]
[1741191897174,18.64964886,141.77,141.67,30.13718222]
[1741191897343,0.42648471,141.76,141.67,29.85285908]
[1741191897654,2.1896824,141.76,141.72,312.0]
[1741191897854,18.64964886,141.77,141.72,312.0]
[1741191898044,20.41284655,141.77,141.72,312.0]
[1741191898447,18.64964886,141.77,141.72,312.0]
[1741191899049,2.04752083,141.76,141.67,29.85285908]
[1741191899254,1.76319769,141.76,141.67,29.85285908]
[1741191899663,1.76319769,141.76,141.68,29.85285908]
[1741191899867,20.41284655,141.78,141.68,29.85285908]
[1741191900052,20.41284655,141.78,141.69,7.0576]
[1741191900367,0.94778865,141.83,141.69,7.0576]
[1741191900368,1.76319769,141.81,141.72,29.85285908]
[1741191900560,1.76319769,141.83,141.74,29.85285908]
[1741191900870,1.76319769,141.85,141.75,29.85285908]
[1741191901047,18.64964886,141.84,141.75,29.85285908]
[1741191901255,0.03,141.87,141.77,29.99502065]
[1741191901467,0.03,141.87,141.81,29.85285908]
[1741191901645,0.03,141.87,141.82,29.85285908]
[1741191901847,0.03,141.87,141.81,29.85285908]
[1741191902046,0.03,141.87,141.85,312.0]
[1741191902640,0.03,141.87,141.84,29.85285908]
[1741191902841,0.03,141.87,141.82,24.679]
[1741191902842,0.03,141.87,141.83,29.99502065]
[1741191903059,0.03,141.87,141.83,29.85285908]
[1741191903468,0.03,141.87,141.84,29.85285908]
[1741191903663,0.03,141.87,141.82,7.0511]
[1741191903970,0.03,141.87,141.81,29.85285908]
[1741191904155,0.03,141.87,141.84,29.99502065]
[1741191904362,0.03,141.87,141.85,29.85285908]
[1741191904673,0.03,141.87,141.86,49.07836806]
[1741191904860,0.03,141.87,141.86,49.22052963]
[1741191905267,0.03,141.87,141.86,69.63424062]
[1741191905574,0.03,142.0,141.93,48.93620649]
[1741191905869,7.0724,142.0,141.89,35.45207151]
[1741191906074,0.28432314,141.98,141.87,35.01627147]
[1741191906270,0.42648471,141.95,141.86,35.67352747]
[1741191906454,1.76319769,141.94,141.85,35.1600923]
[1741191906657,1.76319769,141.94,141.88,33.43781796]
[1741191906658,0.28432314,141.93,141.88,33.43781796]
[1741191906868,0.94778865,141.97,141.88,33.43781796]
[1741191907053,2.94778865,141.97,141.88,33.43781796]
[1741191907376,2.0,141.95,141.88,33.43781796]
[1741191907555,2.0,141.95,141.83,35.33742463]
[1741191907556,2.0,141.95,141.79,84.82735012]
[1741191907873,2.0,141.95,141.79,91.87975012]
[1741191908048,24.6582,141.94,141.8,103.6772806]
[1741191908243,7.0452,141.94,141.81,84.61253472]
[1741191908444,2.0,141.93,141.78,35.52854385]
[1741191908748,0.42648471,141.91,141.8,48.93620649]
[1741191908971,1.5313,141.92,141.82,18.64964886]
[1741191909148,1.5313,141.92,141.83,312.0]
[1741191909350,19.07613357,141.91,141.75,48.93620649]
[1741191909653,19.07613357,141.91,141.79,18.64964886]
[1741191910054,7.6265,141.92,141.8,68.01234006]
[1741191910366,7.6265,141.92,141.83,18.64964886]
[1741191910564,14.6727,141.92,141.83,18.64964886]
[1741191911068,0.28432314,141.91,141.8,0.42648471]
[1741191911382,14.6727,141.92,141.81,48.93620649]
[1741191911553,0.14216157,141.91,141.79,7.0526]
[1741191911752,0.28432314,141.91,141.79,7.0526]
[1741191911947,0.28432314,141.91,141.8,18.64964886]
[1741191912176,14.6727,141.92,141.83,18.64964886]
[1741191912481,18.933972,141.91,141.77,55.98970649]
[1741191912981,27.733972,141.91,141.74,48.93620649]
[1741191913280,20.933972,141.89,141.72,7.0557]
[1741191913455,20.933972,141.89,141.73,68.01234006]
[1741191914056,20.933972,141.89,141.73,18.64964886]
[1741191914264,18.933972,141.83,141.68,10.83955691]
[1741191914581,20.933972,141.83,141.68,10.83955691]
[1741191914759,0.28432314,141.81,141.68,10.83955691]
[1741191914960,18.933972,141.81,141.68,10.83955691]
[1741191915180,20.474272,141.81,141.68,10.83955691]
[1741191915495,28.19247584,141.81,141.69,312.0]
[1741191915782,20.933972,141.79,141.66,0.033]
[1741191916150,0.28432314,141.74,141.66,0.033]
[1741191916853,0.28432314,141.74,141.59,67.58585535]
[1741191917072,0.28432314,141.74,141.61,67.58585535]
[1741191917274,0.28432314,141.74,141.62,49.3626912]
[1741191917463,0.28432314,141.72,141.61,48.93620649]
[1741191917789,35.93023044,141.73,141.63,18.64964886]
[1741191918094,0.14216157,141.71,141.61,18.64964886]
[1741191918266,0.14216157,141.69,141.61,18.64964886]
[1741191918466,0.14216157,141.69,141.6,7.0618]
[1741191918666,0.14216157,141.69,141.56,7.0637]
[1741191918667,0.56864628,141.69,141.56,7.0637]
[1741191918978,0.56864628,141.67,141.6,312.0]
[1741191919568,0.14216157,141.65,141.55,1.9590903]
[1741191919760,0.56864628,141.65,141.55,9.0235903]
[1741191920185,0.56864628,141.65,141.55,1.9590903]
[1741191920186,0.14216157,141.62,141.55,1.9590903]
[1741191920493,0.14216157,141.62,141.58,0.033]
[1741191920858,18.79181043,141.62,141.58,0.033]
[1741191921355,0.28432314,141.61,141.55,1.9590903]
[1741191921580,0.28432314,141.59,141.55,1.9590903]
[1741191921776,18.933972,141.59,141.55,1.9590903]
[1741191921961,18.933972,141.59,141.55,0.3083797]
[1741191922168,0.28432314,141.56,141.44,7.0701]
[1741191922381,18.933972,141.56,141.43,56.00670649]
[1741191922570,18.933972,141.56,141.48,312.0]
[1741191923479,18.933972,141.56,141.48,313.2821648]
[1741191923958,0.28432314,141.56,141.48,313.2821648]
[1741191924155,7.34872314,141.56,141.48,1.2821648]
[1741191924470,25.998372,141.56,141.48,1.2821648]
[1741191924654,43.658672,141.56,141.48,1.2821648]
[1741191924858,7.34872314,141.56,141.48,1.2821648]
[1741191925380,7.34852314,141.56,141.48,1.2821648]
[1741191925584,7.0642,141.56,141.48,1.2821648]
[1741191925760,7.0638,141.57,141.48,1.2821648]
[1741191925962,1.5531,141.58,141.48,6.69904447]
[1741191926166,1.5531,141.58,141.49,7.0671]
[1741191926487,26.2742,141.58,141.45,7.0696]
[1741191926790,0.28432314,141.57,141.45,73.67980649]
[1741191926963,1.5531,141.58,141.47,67.58585535]
[1741191927171,1.5531,141.58,141.49,379.58585535]
[1741191927367,1.5531,141.58,141.49,360.93620649]
[1741191927569,8.6165,141.58,141.49,312.0]
[1741191927775,8.6165,141.58,141.48,18.64964886]
[1741191928176,8.6165,141.58,141.47,48.93620649]
[1741191928383,8.6165,141.58,141.48,7.0681]
[1741191928597,0.28432314,141.57,141.46,7.0691]
[1741191928771,18.933972,141.57,141.46,7.0691]
[1741191929488,0.14216157,141.55,141.45,7.0696]
[1741191929699,0.28432314,141.55,141.45,7.0696]
[1741191930370,18.933972,141.55,141.43,7.0706]
[1741191930565,18.933972,141.55,141.38,7.0731]
[1741191930870,0.28432314,141.49,141.34,48.93620649]
[1741191931076,0.28432314,141.49,141.26,2.0048819]
[1741191931077,0.28432314,141.41,141.26,2.0048819]
[1741191931279,6.4248,141.42,141.26,2.0048819]
[1741191931482,0.28432314,141.41,141.28,48.93620649]
[1741191931693,6.4248,141.42,141.33,48.93620649]
[1741191931867,7.683,141.47,141.37,48.93620649]
[1741191932199,7.683,141.47,141.39,48.93620649]
[1741191932375,14.7517,141.47,141.33,1.48480702]
[1741191932578,0.28432314,141.46,141.34,48.93620649]
[1741191932776,18.933972,141.46,141.31,6.8]
[1741191932972,18.933972,141.46,141.33,18.64964886]
[1741191933177,18.933972,141.46,141.31,6.8]
[1741191933483,18.933972,141.46,141.32,18.64964886]
[1741191933802,24.7436,141.45,141.34,312.0]
[1741191934004,0.14216157,141.41,141.34,312.0]
[1741191934303,0.14216157,141.37,141.28,0.033]
[1741191935093,6.8,141.42,141.29,18.64964886]
[1741191935290,0.56864628,141.4,141.29,67.58585535]
[1741191935677,0.14216157,141.38,141.28,48.96920649]
[1741191935885,0.56864628,141.38,141.28,0.033]
[1741191936784,0.14216157,141.36,141.28,0.033]
[1741191936982,0.14216157,141.34,141.28,0.033]
[1741191937501,0.14216157,141.34,141.28,312.033]
[1741191937671,7.0756,141.33,141.28,312.033]
[1741191937872,7.0756,141.33,141.26,2.0048819]
[1741191938472,7.0749,141.35,141.26,58.02018839]
[1741191938882,7.0749,141.35,141.26,2.0048819]
[1741191939305,7.0749,141.35,141.26,9.0838819]
[1741191939602,7.0749,141.35,141.26,57.42220989]
[1741191939973,7.0749,141.35,141.26,54.89576141]
[1741191940169,7.0749,141.35,141.26,50.34320989]
[1741191940373,7.8682,141.36,141.27,67.58585535]
[1741191940599,7.8682,141.36,141.28,48.93620649]
[1741191940796,14.9426,141.36,141.27,67.58585535]
[1741191941005,14.9426,141.36,141.3,312.0]
[1741191941190,14.9423,141.36,141.3,312.0]
[1741191943302,0.28432314,141.35,141.26,1.4070034]
[1741191943601,32.6276,141.36,141.26,1.4070034]
[1741191944608,14.9423,141.36,141.26,57.42230989]
[1741191944980,14.9423,141.36,141.28,0.033]
[1741191945707,32.6276,141.36,141.28,0.033]
[1741191946297,32.6276,141.36,141.28,312.033]
[1741191946298,14.9423,141.36,141.28,312.033]
[1741191946604,32.6276,141.36,141.28,312.033]
[1741191946774,32.6276,141.36,141.28,0.033]
[1741191947887,32.6276,141.36,141.28,7.111]
[1741191948071,32.6276,141.36,141.28,0.033]
[1741191948276,0.28432314,141.35,141.28,0.033]
[1741191948614,0.28432314,141.33,141.28,0.033]
[1741191948918,18.933972,141.33,141.28,0.033]
[1741191949105,0.28432314,141.33,141.28,0.033]
[1741191949604,7.0751,141.34,141.28,0.033]
[1741191949784,7.0751,141.34,141.28,312.033]
[1741191949980,7.0751,141.34,141.26,57.42220989]
[1741191950386,7.0746,141.35,141.26,57.42220989]
[1741191950908,24.7611,141.35,141.29,312.0]
[1741191951413,7.0746,141.35,141.29,312.0]
[1741191951610,7.0746,141.35,141.28,48.93620649]
[1741191951805,7.0746,141.35,141.27,18.64964886]
[1741191951806,7.0746,141.35,141.27,67.58585535]
[1741191952108,7.8682,141.36,141.28,48.93620649]
[1741191952307,14.9425,141.36,141.28,48.93620649]
[1741191952488,14.9425,141.36,141.29,48.93620649]
[1741191952689,7.8682,141.36,141.3,67.58585535]
[1741191952890,14.9424,141.36,141.29,48.93620649]
[1741191953103,14.9424,141.36,141.28,56.01430649]
[1741191953581,14.9424,141.36,141.29,67.58585535]
[1741191953980,14.9424,141.36,141.28,48.93620649]
[1741191954207,14.9424,141.36,141.27,7.0786]
[1741191954394,32.6277,141.36,141.27,56.01480649]
[1741191954594,14.9424,141.36,141.31,312.0]
[1741191954795,7.8682,141.36,141.31,313.4070034]
[1741191955101,7.8682,141.36,141.31,50.34320989]
[1741191955285,7.8682,141.36,141.31,1.4070034]
[1741191955488,14.9424,141.36,141.31,1.4070034]
[1741191957715,32.6277,141.36,141.31,1.4070034]
[1741191958020,32.6277,141.36,141.33,312.0]
[1741191958220,32.6277,141.36,141.31,1.4070034]
[1741191958991,14.9424,141.36,141.31,1.4070034]
[1741191959210,14.9424,141.36,141.31,313.4070034]
[1741191959417,14.9424,141.36,141.31,320.4835034]
[1741191959594,7.8682,141.36,141.31,320.4835034]
[1741191959798,0.03,141.37,141.31,320.4835034]
[1741191959799,0.03,141.37,141.32,30.35714579]
[1741191960123,0.03,141.37,141.31,1.4070034]
[1741191960424,0.03,141.37,141.34,30.35714579]
[1741191960586,0.03,141.37,141.33,30.35714579]
[1741191960790,0.03,141.37,141.31,8.4835034]
[1741191960990,0.03,141.37,141.31,31.76414919]
[1741191961219,0.03,141.37,141.31,38.84074919]
[1741191961386,0.03,141.37,141.31,1.4070034]
[1741191962720,0.03,141.37,141.31,313.4070034]
[1741191962920,0.03,141.37,141.31,1.4070034]
[1741191963704,0.28432314,141.35,141.31,1.4070034]
[1741191963924,1.589,141.34,141.31,1.4070034]
[1741191964097,7.0756,141.33,141.31,1.4070034]
[1741191964803,6.393,141.36,141.31,1.4070034]
[1741191965100,13.4672,141.36,141.31,1.4070034]
[1741191965311,6.393,141.36,141.31,8.4834034]
[1741191965507,13.4671,141.36,141.31,1.4070034]
[1741191965826,13.4671,141.36,141.32,312.0]
[1741191966041,7.1038,141.37,141.32,312.0]
[1741191966325,0.03,141.37,141.31,31.76414919]
[1741191966537,0.03,141.37,141.31,1.4070034]
[1741191967011,0.28432314,141.35,141.25,0.033]
[1741191967528,18.933972,141.33,141.25,0.033]
[1741191967730,18.933972,141.31,141.25,0.033]
[1741191968111,18.933972,141.31,141.25,0.0001]
[1741191968307,0.28432314,141.29,141.25,0.0001]
[1741191968804,18.933972,141.29,141.25,0.0001]
[1741191970213,20.445872,141.27,141.16,312.033]
[1741191970412,20.445872,141.27,141.16,0.033]
[1741191970640,0.28432314,141.25,141.16,0.033]
[1741191971422,18.933972,141.24,141.16,0.033]
[1741191971739,25.733972,141.24,141.16,0.033]
[1741191972107,0.14216157,141.22,141.16,0.033]
[1741191972312,7.0806,141.23,141.16,0.033]
[1741191973031,24.7822,141.23,141.16,0.033]
[1741191973228,7.0806,141.23,141.16,0.033]
[1741191973413,0.14216157,141.22,141.16,0.033]
[1741191974020,30.5490839,141.23,141.16,0.033]
[1741191974545,0.14216157,141.22,141.11,49.41463492]
[1741191974920,0.42648471,141.22,141.11,56.50103492]
[1741191975314,30.5490839,141.23,141.12,49.41463492]
[1741191975517,0.28432314,141.22,141.13,312.0]
[1741191975829,0.28432314,141.22,141.09,56.50213492]
[1741191976347,0.28432314,141.2,141.08,49.41463492]
[1741191976652,0.28432314,141.2,141.08,56.50263492]
[1741191977241,0.28432314,141.18,141.07,1.9842654]
[1741191977423,18.933972,141.18,141.07,1.9842654]
[1741191977829,0.28432314,141.18,141.07,1.9842654]
[1741191978025,0.28432314,141.18,141.07,9.0728654]
[1741191978222,18.933972,141.18,141.07,1.9842654]
[1741191978426,0.28432314,141.16,141.07,1.9842654]
[1741191978731,24.7927,141.17,141.07,321.0727654]
[1741191978935,24.7927,141.17,141.07,313.9842654]
[1741191979443,0.28432314,141.16,141.07,1.9842654]
[1741191980339,0.28432314,141.14,141.07,1.9842654]
[1741191980846,24.7962,141.15,141.07,1.9842654]
[1741191981351,0.14216157,141.14,141.07,1.9842654]
[1741191981531,0.28432314,141.14,141.07,1.9842654]
[1741191981733,6.4093,141.13,141.07,1.9842654]
[1741191981915,1.88212314,141.12,141.07,1.9842654]
[1741191982120,0.28432314,141.1,141.07,1.9842654]
[1741191982526,0.28432314,141.08,141.07,6.54e-05]
[1741191982947,0.28432314,141.08,141.02,0.4]
[1741191983250,0.14216157,141.06,141.02,0.4]
[1741191983552,0.28432314,141.06,141.02,0.4]
[1741191983755,18.933972,141.06,141.02,0.0001]
[1741191983955,1.5086,141.05,141.02,0.0001]
[1741191984451,7.0901,141.04,141.02,0.0001]
[1741191984839,0.28432314,141.03,140.92,0.033]
[1741191985065,5.88834446,141.03,140.92,0.033]
[1741191985555,0.14216157,141.0,140.92,0.033]
[1741191985849,0.14216157,141.01,140.92,0.033]
[1741191986033,5.60402132,141.03,140.92,49.44763492]
[1741191986244,0.56864628,141.02,140.92,0.033]
[1741191986551,0.14216157,140.99,140.92,0.033]
[1741191986760,6.4013,140.98,140.92,0.033]
[1741191987049,0.56864628,140.97,140.92,0.033]
[1741191987452,0.56864628,140.95,140.92,0.033]
[1741191987643,0.14216157,140.95,140.92,0.033]
[1741191987847,1.5049,140.96,140.92,0.033]
[1741191988052,6.4013,140.98,140.92,0.033]
[1741191988444,7.0937,140.97,140.92,0.033]
[1741191988649,0.14216157,140.96,140.92,0.033]
[1741191988874,0.14216157,140.96,140.82,124.8]
[1741191988875,0.56864628,140.96,140.82,7.1012]
[1741191989028,2.42648471,140.92,140.78,1.9842654]
[1741191989229,0.28432314,140.9,140.78,1.9842654]
[1741191989659,18.933972,140.9,140.78,1.9842654]
[1741191990363,3.79055311,140.9,140.78,1.9842654]
[1741191990543,10.60352997,140.9,140.78,9.0874654]
[1741191990743,7.0973,140.9,140.81,49.41463492]
[1741191991053,7.23786157,140.93,140.82,49.41463492]
[1741191991255,24.835,140.93,140.78,1.9842654]
[1741191991476,0.28432314,140.91,140.78,1.9842654]
[1741191991831,24.835,140.93,140.8,49.41463492]
[1741191992032,24.835,140.93,140.79,49.41463492]
[1741191992344,24.835,140.93,140.8,312.0]
[1741191992735,0.28432314,140.92,140.78,51.39890032]
[1741191992946,0.14216157,140.92,140.79,49.41463492]
[1741191993156,24.835,140.93,140.81,49.41463492]
[1741191993335,7.0957,140.93,140.82,49.41463492]
[1741191993539,7.0957,140.93,140.83,49.41463492]
[1741191993863,0.28432314,140.92,140.78,1.9842654]
[1741191994167,18.933972,140.92,140.78,1.9842654]
[1741191994462,0.28432314,140.9,140.78,1.9842654]
[1741191995856,0.28432314,140.9,140.78,313.9842654]
[1741191996066,0.28432314,140.9,140.78,314.0172654]
[1741191996356,24.8385,140.91,140.8,49.41463492]
[1741191996559,0.03,140.92,140.82,49.41463492]
[1741191996767,0.03,140.92,140.83,49.41463492]
[1741191997075,0.03,140.92,140.81,49.41463492]
[1741191997249,0.03,140.92,140.82,49.41463492]
[1741191997970,0.03,140.92,140.83,49.41463492]
[1741191998137,0.03,140.92,140.81,49.41463492]
[1741191998344,0.03,140.92,140.83,49.41463492]
[1741191998945,0.03,140.92,140.81,49.41463492]
[1741191999238,0.31432314,140.92,140.8,49.41463492]
[1741191999444,0.03,140.92,140.82,49.41463492]
[1741191999854,0.03,140.92,140.81,49.41463492]
[1741192000371,0.03,140.92,140.85,49.41463492]
[1741192000581,0.03,140.92,140.81,7.8186903]
[1741192000741,0.03,140.92,140.84,49.41463492]
[1741192001068,0.03,140.92,140.82,49.41463492]
[1741192001438,0.03,140.92,140.81,49.41463492]
[1741192001641,0.03,140.92,140.82,49.41463492]
[1741192001863,0.03,140.92,140.81,49.41463492]
[1741192002066,0.03,140.92,140.8,49.41463492]
[1741192002468,18.963972,140.92,140.78,2.0172654]
[1741192002860,6.388,140.91,140.78,314.0172654]
[1741192003253,6.388,140.91,140.78,363.43190032]
[1741192003455,6.388,140.91,140.79,49.41463492]
[1741192003783,6.388,140.91,140.8,49.41463492]
[1741192004071,6.388,140.91,140.81,49.41463492]
[1741192004361,6.388,140.91,140.85,49.41463492]
[1741192004571,0.03,140.92,140.87,49.41463492]
[1741192004746,0.03,140.92,140.89,49.41463492]
[1741192005160,0.03,140.92,140.88,49.41463492]
[1741192005365,7.1262,140.92,140.88,49.41463492]
[1741192005591,7.1262,140.92,140.87,49.41463492]
[1741192006451,0.03,140.92,140.88,49.41463492]
[1741192006775,0.03,140.92,140.89,361.41463492]
[1741192007350,0.03,140.92,140.89,312.0]
[1741192007549,0.03,140.92,140.88,49.41463492]
[1741192007749,0.03,140.92,140.89,49.41463492]
[1741192007954,0.03,140.92,140.87,49.41463492]
[1741192008167,0.03,140.92,140.86,49.41463492]
[1741192008376,0.03,140.92,140.85,49.41463492]
[1741192008554,0.03,140.92,140.87,312.0]
[1741192010163,0.03,140.92,140.83,49.41463492]
[1741192010673,0.03,140.92,140.85,49.41463492]
[1741192011180,0.03,140.92,140.84,49.41463492]
[1741192011885,0.03,140.92,140.83,49.41463492]
[1741192012473,0.03,140.92,140.84,49.41463492]
[1741192012657,0.03,140.92,140.85,49.41463492]
[1741192013058,0.03,140.92,140.86,312.0]
[1741192014174,0.03,140.92,140.82,49.41463492]
[1741192014471,0.03,140.92,140.85,49.41463492]
[1741192014785,0.03,140.92,140.85,30.54852446]
[1741192014989,0.03,140.92,140.84,30.54852446]
[1741192015293,0.03,140.92,140.85,30.54852446]
[1741192015862,0.03,140.92,140.86,30.54852446]
[1741192016202,0.03,140.92,140.87,30.54852446]
[1741192016511,0.03,140.92,140.86,30.54852446]
[1741192016993,0.03,140.92,140.88,312.0]
[1741192017974,0.03,140.92,140.82,51.42758471]
[1741192018178,0.03,140.92,140.85,30.54852446]
[1741192018394,0.03,140.92,140.86,30.54852446]
[1741192018606,0.03,140.92,140.87,30.54852446]
[1741192018905,0.03,140.92,140.84,43.9]
[1741192019295,0.03,140.92,140.85,30.54852446]
[1741192020288,0.03,140.92,140.82,0.42648471]
[1741192020509,0.03,140.92,140.86,30.54852446]
[1741192020686,0.03,140.92,140.88,30.54852446]
[1741192020886,0.03,140.92,140.91,31.11717074]
[1741192021220,7.0918,141.01,140.92,0.14216157]
[1741192021382,81.0,141.02,140.92,82.3893328]
[1741192021383,88.0913,141.02,140.92,82.3893328]
[1741192021592,88.0913,141.02,140.94,30.54852446]
[1741192021790,81.0,141.01,140.89,80.9]
[1741192022112,81.0,141.0,140.9,1.48995787]
[1741192022288,81.0,141.0,140.92,30.54852446]
[1741192022487,18.64964886,140.98,140.88,0.033]
[1741192022707,6.4362,140.95,140.88,0.033]
[1741192023010,1.6576,140.94,140.88,0.033]
[1741192024621,24.835,140.93,140.88,0.033]
[1741192025288,7.0957,140.93,140.88,0.033]
[1741192026386,24.835,140.93,140.88,0.033]
[1741192028312,18.64964886,140.92,140.88,0.033]
[1741192028921,7.0967,140.91,140.88,0.033]
[1741192030287,7.0963,140.92,140.88,0.033]
[1741192031012,24.8368,140.92,140.88,0.033]
[1741192031223,7.0963,140.92,140.88,0.033]
[1741192031787,24.8368,140.92,140.88,0.033]
[1741192032011,105.8368,140.92,140.88,0.033]
[1741192032388,81.0,140.91,140.88,0.033]
[1741192032909,7.0977,140.89,140.88,0.033]
[1741192034224,81.0,140.9,140.88,0.033]
[1741192034515,88.0974,140.9,140.88,0.033]
[1741192034927,81.0,140.9,140.88,0.033]
[1741192035106,7.0959,140.93,140.88,0.033]
[1741192035415,82.6576,140.94,140.88,0.033]
[1741192035416,89.7529,140.94,140.88,0.033]
[1741192035716,82.6576,140.94,140.88,30.58152446]
[1741192035887,89.753,140.94,140.88,0.033]
[1741192036315,107.491,140.94,140.88,312.033]
[1741192036485,99.64964886,140.93,140.88,0.033]
[1741192036823,81.0,140.93,140.88,0.033]
[1741192036986,7.0962,140.92,140.88,0.033]
[1741192037183,81.0,140.96,140.88,0.033]
[1741192037501,7.0943,140.96,140.88,1.52319768]
[1741192037815,24.8298,140.96,140.88,30.58152446]
[1741192038024,24.8298,140.96,140.88,0.033]
[1741192038386,7.0943,140.96,140.88,30.58152446]
[1741192038589,7.0943,140.96,140.89,30.54852446]
[1741192038786,81.0,140.98,140.88,30.58152446]
[1741192039012,24.8281,140.97,140.88,30.58152446]
[1741192039384,24.8281,140.97,140.88,0.033]
[1741192039584,81.0,140.96,140.9,312.0]
[1741192040023,81.0,140.96,140.9,30.54852446]
[1741192040408,81.0,140.96,140.92,30.54852446]
[1741192040716,7.0928,140.99,140.94,30.54852446]
[1741192040918,7.0928,140.99,140.92,30.54852446]
[1741192041123,7.0928,140.99,140.91,80.9]
[1741192041321,81.0,140.98,140.9,30.54852446]
[1741192041710,81.0,140.98,140.89,30.54852446]
[1741192041911,81.0,140.98,140.9,30.54852446]
[1741192042223,81.0,140.98,140.91,30.54852446]
[1741192042419,81.0,140.98,140.92,30.54852446]
[1741192042926,7.0918,141.01,140.95,7.0947]
[1741192043127,88.1213,141.02,140.96,342.54852446]
[1741192043295,0.03,141.02,141.0,30.54852446]
[1741192043495,0.03,141.02,141.01,30.54852446]
[1741192043903,0.03,141.02,140.99,1.48866062]
[1741192044101,0.03,141.02,140.97,30.54852446]
[1741192044413,7.1212,141.02,140.95,30.54852446]
[1741192044597,7.1212,141.02,140.94,32.03794658]
[1741192044800,0.03,141.02,140.96,30.54852446]
[1741192045019,0.03,141.02,140.98,30.54852446]
[1741192045236,0.03,141.02,140.99,30.54852446]
[1741192045396,0.03,141.02,141.01,30.97500917]
[1741192045901,0.03,141.02,141.01,30.54852446]
[1741192046420,0.03,141.02,141.01,30.97500917]
[1741192046620,0.03,141.02,141.01,312.0]
[1741192046804,0.03,141.02,141.01,342.97500917]
[1741192046999,0.03,141.02,141.01,349.64012446]
[1741192047202,0.03,141.02,141.01,312.0]
[1741192047402,0.03,141.02,141.01,349.64012446]
[1741192047819,0.03,141.02,141.01,475.00877074]
[1741192048027,0.03,141.07,141.02,7.09854628]
[1741192048298,0.03,141.07,141.06,30.97500917]
[1741192048599,0.03,141.07,141.06,113.36289878]
[1741192048800,0.03,141.07,141.06,176.05470921]
[1741192049039,0.03,141.17,141.07,0.56864628]
[1741192049235,0.03,141.17,141.13,30.54852446]
[1741192049411,0.03,141.17,141.09,30.54852446]
[1741192049734,0.03,141.17,141.08,1.48780256]
[1741192049932,0.03,141.17,141.1,30.54852446]
[1741192050438,0.03,141.17,141.08,30.54852446]
[1741192050598,0.03,141.17,141.09,30.54852446]
[1741192050804,81.03,141.17,141.09,30.54852446]
[1741192051125,24.7944,141.16,141.06,312.0]
[1741192051312,6.0828,141.14,141.06,312.0]
[1741192051641,82.501,141.13,141.01,37.64002446]
[1741192051841,81.0,141.12,141.01,39.12866912]
[1741192052005,81.0,141.12,141.01,30.54852446]
[1741192052340,81.0,141.12,141.03,30.54852446]
[1741192052537,1.501,141.13,141.0,87.9921]
[1741192052538,99.64964886,141.11,141.0,111.44852446]
[1741192052741,99.64964886,141.11,140.98,43.9]
[1741192053043,24.8085,141.08,140.97,80.9]
[1741192053215,24.8085,141.08,140.95,45.4653]
[1741192053216,81.0,141.07,140.96,8.58331906]
[1741192053413,6.275,141.05,140.93,82.38915631]
[1741192053598,82.6138,141.04,140.92,75.93792882]
[1741192053798,99.64964886,141.03,140.92,30.54852446]
[1741192054019,99.64964886,141.03,140.91,30.54852446]
[1741192054020,81.0,141.02,140.91,30.54852446]
[1741192054237,81.0,141.02,140.92,30.54852446]
[1741192054398,81.0,141.02,140.93,342.54852446]
[1741192054603,5.14655542,141.04,140.93,342.54852446]